{"text_format":"1","workbook":"xlsx","n_sheets":4,"sheets":["CLASSIFICAÇÃO GERAL 2025","jun2025","jul2025","ago2025"],"not_rendered":{"charts":0,"images":2,"macros":1,"external_links":0,"defined_names":1,"comments":0,"pivot_tables":0},"unopened":[],"bounds":{"document_bytes":16777216,"sheet_cells":100000,"rows_first":2000,"rows_last":500,"rows_between":2000,"halvings":0,"cell_chars":16384,"cell_head_chars":4096},"cells_cut":0,"cells_raw":0,"read":"whole","date_system":"1900"}

{"sheet":"CLASSIFICAÇÃO GERAL 2025","index":0,"n_rows":103,"n_cols":5,"rows_kept":103,"cut":false,"hidden":false,"merged":[[0,0,0,4],[1,0,1,4]]}
["CLASSIFICAÇÃO GERAL ACPA – TEMPORADA 2025 DOMINGO"]
["TRINCA-FERRO FIBRA","Pássaro","Proprietário","Origem","Pontos"]
["POSIÇÃO","NOME DO PÁSSARO","NOME DO PROPRIETÁRIO","ORIGEM (CIDADE)","PONTUAÇÃO"]
["1º","NEGO VEIO","LUIZINHO","PETRÓPOLIS",{"$f":"26+26+28+19+23+43+23+22","v":210}]
["2º","ATREVIDO","JOSENILTON","PARAÍBA DO SUL",{"$f":"21+30+26+21+15+22+20+17+16","v":188}]
["3º","TURBO","ADRIANO","PETRÓPOLIS",{"$f":"23+20+28+19+16+20","v":126}]
["4º","XERIFE","LI","BARBACENA",{"$f":"30+17+24+24","v":95}]
["5º","MAGAYVER","JESUS ANTÔNIO","TRÊS RIOS",{"$f":"21+13+19+21","v":74}]
["6º","CHARADA","GABRIEL","PETRÓPOLIS",{"$f":"24+20+26","v":70}]
["7º","SUSSURRO","DOMINGOS/CH","PARAÍBA DO SUL",{"$f":"16+18+18+18","v":70}]
["8º","FANTÁSTICO","TIAGUINHO","JUIZ DE FORA",{"$f":"24+24+21","v":69}]
["9º","DEMOLIDOR","MICHEL","TRÊS RIOS",{"$f":"22+26+19","v":67}]
["10º","PROBLEMA","EMERSON","ANTA",{"$f":"26+14+21","v":61}]
["11º","RAMBO","LUIZINHO","PETRÓPOLIS",{"$f":"16+15+13+17","v":61}]
["12º","BOLO DOIDO","JEFERSON","PARAÍBA DO SUL",{"$f":"17+24+15","v":56}]
["13º","CADILLAC","DANIEL","JUIZ DE FORA",{"$f":"30+24","v":54}]
["14º","FERRADURA","GILSON/GUSTAVO","SANTOS DUMONT",{"$f":"30+24","v":54}]
["15º","SUPREME","ANDRÉ LUIS","PARAÍBA DO SUL",{"$f":"26+28","v":54}]
["16º","ASTRO","ALEXANDRE/ANA CARLA","SOUZA AGUIAR",{"$f":"30+23","v":53}]
["17º","BOINA PRETA","HERALDO","PETRÓPOLIS",{"$f":"28+23","v":51}]
["18º","GARANHÃO","RODRIGO","PATY DO ALFERES",{"$f":"30+20","v":50}]
["19º","NOVATO","LUCIMAR/LUIZ HENRIQUE","TRÊS RIOS",{"$f":"22+28","v":50}]
["20º","VELOSTER","HENRIQUE","ANTA",{"$f":"16+14+18","v":48}]
["21º","MOLEQUE DOIDO","MARINHO","SANTOS DUMONT",{"$f":"21+26","v":47}]
["22º","BOLSONARO","NATHAN","PETRÓPOLIS",{"$f":"22+24","v":46}]
["23º","CABULOSO","BORRACHA","JUIZ DE FORA",{"$f":"23+21","v":44}]
["24º","CLONE","FÁBIO JR","PATY DO ALFERES",{"$f":"22+21","v":43}]
["25º","DUBLE","GILSON/GUSTAVO","S. DUMONT/TRÊS RIOS",{"$f":"28+14","v":42}]
["26º","MEXICANO","RODRIGO/BRUNO","PETRÓPOLIS",{"$f":"19+20","v":39}]
["27º","FARAO","RAFAEL SATYRO","PETRÓPOLIS",{"$f":"15+17","v":32}]
["28º","GUERREIRO","ELISEU ARCANJO","TRÊS RIOS",{"$f":"17+14","v":31}]
["29º","AMIZADE","FLÁVIO","MIGUEL PEREIRA",30]
["30º","MALVADO","ADALBERTO","BEMPOSTA",30]
["31º","MEIA NOITE","MARCÃO","JUIZ DE FORA",30]
["32º","TORRE FORTE","DANIEL","JUIZ DE FORA",30]
["33º","GUERREIRO","RUAN","MAR DE ESPANHA",28]
["34º","MOLEQUE DOIDO","JOSÉ AMERICO","DORES DE CAMPOS",28]
["35º","SCARFACE","QUAQUA/PETETECO","AVELAR",28]
["36º","TARRAFA","EDIMAR LEITEIRO","PETRÓPOLIS",{"$f":"13+15","v":28}]
["37º","ABUTRE","PAULO AMARAL","SANTOS DUMONT",26]
["38º","FRAJOLA","LUCAS","PETRÓPOLIS",{"$f":"13+13","v":26}]
["39º","ULTRAGAS","GABRIEL","MAR DE ESPANHA",26]
["40º","POPAYE","GILSON/GUSTAVO","SANTOS DUMONT",24]
["41º","ABENÇOADO","GILSON/GUSTAVO","S. DUMONT/TRÊS RIOS",23]
["42º","OURO BRUTO","MARQUINHO","TRÊS RIOS",23]
["43º","PRESIDENTE","FERNANDO","SAPUCAIA",23]
["44º","SUZUKI","JOÃO PEDRO","PARAÍBA DO SUL",23]
["45º","ABENÇOADO","JUNIN","JUIZ DE FORA",22]
["46º","ESTRELA","RAFAEL DIAS","PARAÍBA DO SUL",22]
["47º","MAKARIOS","RAFAEL DIAS","PARAÍBA DO SUL",22]
["48º","ZEUS","SILVAN LOPES","JUIZ DE FORA",22]
["49º","COWBOY","EULER","BICAS",21]
["50º","CALIBRE","FAMÍLIA MINGAL","PARAÍBA DO SUL",20]
["51º","HULK","LORRAN","INDEPENDÊNCIA",20]
["52º","REVELAÇÃO","GELSON","TRÊS RIOS",20]
["53º","ZICO","BRUNO/MARCINHO","JUIZ DE FORA",20]
["54º","FARISEU","FAMÍLIA MINGAL","PARAÍBA DO SUL",19]
["55º","MARRETA","MARCELO","SEBOLAS",19]
["56º","MITO","GILSON","SANTOS DUMONT",19]
["57º","PESADELO","THIAGO","JUIZ DE FORA",19]
["58º","REI","GUSTAVO/GILSON","TRÊS RIOS/S. DUMONT",19]
["59º","APITO","JANDERSON","TRÊS RIOS",18]
["60º","BICO BOM","PERROTA","PARAÍBA DO SUL",18]
["61º","CRAQUE","ALCINEI","JUIZ DE FORA",18]
["62º","GUARDIÃO","ÍCARO/GABRIEL","PARAÍBA DO SUL",18]
["63º","IGNORANTE","JUNINHO","TRÊS RIOS",18]
["64º","SNIPER","MARCELO","PETRÓPOLIS",18]
["65º","CRUEL","RODRIGO/FELIPE","ROCHEDO DE MINAS",17]
["66º","PIVETE","HENRIQUE","ANTA",17]
["67º","TARJA PRETA","HENRIQUE JARDIM","ANTA",17]
["68º","CAPOEIRA","WANDER/NICIA","BICAS",16]
["69º","LOKI","DALIO LEAL","TRÊS RIOS",16]
["70º","MALVADO","MARCELO","SEBOLAS",16]
["71º","TOP","FAMÍLIA MINGAL","PARAÍBA DO SUL",16]
["72º","ABSOLUTO","XANDINHO","SANTOS DUMONT",15]
["73º","JOIA RARA","RAFAEL SATYRO","PETRÓPOLIS",15]
["74º","TALARICO","ALFREDO","MATIAS BARBOSA",15]
["75º","DIEGO","EULER","TRÊS RIOS",14]
["76º","JOHN WICK","IVERSON","TRÊS RIOS",14]
["77º","MATA RINDO","JUNINHO","JUIZ DE FORA",14]
["78º","BOPE","GILSON/GUSTAVO","SANTOS DUMONT",13]
["79º","SEILA","FAMÍLIA MINGAL","PARAÍBA DO SUL",13]
["80º"]
["81º"]
["82º"]
["83º"]
["84º"]
["85º"]
["86º"]
["87º"]
["88º"]
["89º"]
["90º"]
["91º"]
["92º"]
["93º"]
["94º"]
["95º"]
["96º"]
["97º"]
["98º"]
["99º"]
["100º"]

{"sheet":"jun2025","index":1,"n_rows":17,"n_cols":6,"rows_kept":17,"cut":false,"hidden":false,"merged":[[0,0,0,5]]}
["29/06/2025 (DOMINGO)"]
["POS.","PÁSSARO","PROPRIETÁRIO","ORIGEM","CANTOS","PONTOS"]
["1º","GARANHÃO","RODRIGO","PATY DO ALFERES",156,30]
["2º","TURBO","ADRIANO","PETRÓPOLIS",124,28]
["3º","ATREVIDO","JOSENILTON","PARAÍBA DO SUL",116,26]
["4º","FERRADURA","GUSTAVO/GILSON","TRÊS RIOS/SD",105,24]
["5º","ABENÇOADO","GILSON/GUSTAVO","S. DUMONT/TRÊS RIOS",103,23]
["6º","BOLSONARO","NATHAN","PETRÓPOLIS",102,22]
["7º","CLONE","FÁBIO JR","AVELLAR",101,21]
["8º","MEXICANO","RODRIGO","PETRÓPOLIS",86,20]
["9º","MITO","GILSON","SANTOS DUMONT",82,19]
["10º","SUSSURRO","CH/DOMINGOS","PARAÍBA DO SUL",82,18]
["11º","HULK","LORRAN","PETRÓPOLIS",52]
["12º","JOIA RARA","RAFAEL","PETRÓPOLIS",31]
["13º"]
["14º"]
["15º"]

{"sheet":"jul2025","index":2,"n_rows":42,"n_cols":27,"rows_kept":42,"cut":false,"hidden":false,"merged":[[0,0,0,5],[0,7,0,12],[0,14,0,19],[0,21,0,26]]}
["06/07/2025 (DOMINGO)",null,null,null,null,null,null,"13/07/2025 (DOMINGO)",null,null,null,null,null,null,"20/07/2025 (DOMINGO)",null,null,null,null,null,null,"27/07/2025 (DOMINGO)"]
["POS.","PÁSSARO","PROPRIETÁRIO","ORIGEM","CANTOS","PONTOS",null,"POS.","PÁSSARO","PROPRIETÁRIO","ORIGEM","CANTOS","PONTOS",null,"POS.","PÁSSARO","PROPRIETÁRIO","ORIGEM","CANTOS","PONTOS",null,"POS.","PÁSSARO","PROPRIETÁRIO","ORIGEM","CANTOS","PONTOS"]
["1º","FERRADURA","GILSON/GUSTAVO","SANTOS DUMONT",111,30,null,"1º","ATREVIDO","JOSENILTON","PARAÍBA DO SUL",120,30,null,"1º","XERIFE","LI","BARBACENA",163,30,null,"1º","TORRE FORTE","DANIEL","JUIZ DE FORA",179,30]
["2º","BOINA PRETA","HERALDO","PETRÓPOLIS",111,28,null,"2º","DUBLE","GILSON/GUSTAVO","S. DUMONT/TRÊS RIOS",115,28,null,"2º","NEGO VEIO","LUIZINHO","PETRÓPOLIS",129,28,null,"2º","GUERREIRO","RUAN","MAR DE ESPANHA",152,28]
["3º","NEGO VEIO","LUIZINHO","PETRÓPOLIS",111,26,null,"3º","NEGO VEIO","LUIZINHO","PETRÓPOLIS",111,26,null,"3º","PROBLEMA","EMERSON","ANTA",109,26,null,"3º","ABUTRE","PAULO AMARAL","SANTOS DUMONT",143,26]
["4º","FANTÁSTICO","TIAGUINHO","JUIZ DE FORA",107,24,null,"4º","BOLO DOIDO","JEFERSON","PARAÍBA DO SUL",104,24,null,"4º","FANTÁSTICO","TIAGUINHO","JUIZ DE FORA",104,24,null,"4º","BOLSONARO","NATHAN","PETRÓPOLIS",143,24]
["5º","TURBO","ADRIANO","PETRÓPOLIS",104,23,null,"5º","OURO BRUTO","MARQUINHO","TRÊS RIOS",102,23,null,"5º","PRESIDENTE","FERNANDO","SAPUCAIA",100,23,null,"5º","BOINA PRETA","HERALDO","PETRÓPOLIS",130,23]
["6º","ZEUS","SILVAN LOPES","JUIZ DE FORA",102,22,null,"6º","CLONE","FÁBIO JR","PATY DO ALFERES",100,22,null,"6º","DEMOLIDOR","MICHEL","TRÊS RIOS",94,22,null,"6º","ESTRELA","RAFAEL DIAS","PARAÍBA DO SUL",127,22]
["7º","ATREVIDO","JOSENILTON","PARAÍBA DO SUL",100,21,null,"7º","MAGAYVER","JESUS ANTÔNIO","TRÊS RIOS",100,21,null,"7º","ATREVIDO","JOSENILTON","PARAÍBA DO SUL",90,21,null,"7º","COWBOY","EULER","BICAS",123,21]
["8º","HULK","LORRAN","INDEPENDÊNCIA",99,20,null,"8º","TURBO","ADRIANO","PETRÓPOLIS",97,20,null,"8º","REVELAÇÃO","GELSON","TRÊS RIOS",90,20,null,"8º","GARANHÃO","RODRIGO","PATY DO ALFERES",122,20]
["9º","MEXICANO","RODRIGO/BRUNO","PETRÓPOLIS",93,19,null,"9º","MARRETA","MARCELO","SEBOLAS",97,19,null,"9º","TURBO","ADRIANO","PETRÓPOLIS",89,19,null,"9º","NEGO VEIO","LUIZINHO","PETRÓPOLIS",121,19]
["10º","APITO","JANDERSON","TRÊS RIOS",86,18,null,"10º","SNIPER","MARCELO","PETRÓPOLIS",72,18,null,"10º","SUSSURRO","CH/DOMINGOS","PARAÍBA DO SUL",88,18,null,"10º","GUARDIÃO","ÍCARO/GABRIEL","PARAÍBA DO SUL",119,18]
["11º","BOLO DOIDO","JEFERSON","PARAÍBA DO SUL",79,17,null,"11º","FARAO","RAFAEL SATYRO","PETRÓPOLIS",70,17,null,"11º","TARJA PRETA","HENRIQUE JARDIM","ANTA",87,17,null,"11º","XERIFE","LI","BARBACENA",111,17]
["12º","SUSSURRO","DOMINGOS/CH","PARAÍBA DO SUL",78,16,null,"12º","TOP","FAMÍLIA MINGAL","PARAÍBA DO SUL",70,16,null,"12º","MALVADO","MARCELO","SEBOLAS",82,16,null,"12º","TURBO","ADRIANO","PETRÓPOLIS",108,16]
["13º","FARAO","RAFAEL SATYRO","PETRÓPOLIS",70,15,null,"13º","JOIA RARA","RAFAEL SATYRO","PETRÓPOLIS",60,15,null,"13º","BOLO DOIDO","JEFERSON","PARAÍBA DO SUL",80,15,null,"13º","ATREVIDO","JOSENILTON","PARAÍBA DO SUL",106,15]
["14º",null,null,null,null,null,null,"14º","MALVADO","JUNIOR VIEIRA","SARDOAL",55,null,null,"14º","DUBLE","GILSON/GUSTAVO","S. DUMONT/TRÊS RIOS",77,14,null,"14º","JOHN WICK","IVERSON","TRÊS RIOS",106,14]
["15º",null,null,null,null,null,null,"15º","SUSSURO","DOMINGOS/CH","PARAÍBA DO SUL",49,null,null,"15º","MAGAYVER","JESUS DE PAULA","TRÊS RIOS",73,13,null,"15º","TARRAFA","EDIMAR LEITEIRO","PETRÓPOLIS",96,13]
["16º",null,null,null,null,null,null,"16º","SEILA","FAMÍLIA MINGAL","PARAÍBA DO SUL",46,null,null,"16º","FULGORE","SILAS","TRÊS RIOS",69,null,null,"16º","SUSSURRO","CH/DOMINGOS","PARAÍBA DO SUL",95]
["17º",null,null,null,null,null,null,"17º","MEXICANO","BRUNO/RODRIGO","PETRÓPOLIS",44,null,null,"17º","OURO BRUTO","MARQUINHO","TRÊS RIOS",69,null,null,"17º","FRAJOLA","LUCAS","PETRÓPOLIS",94]
["18º",null,null,null,null,null,null,"18º","GRANADA","HENRIQUE","ANTA",36,null,null,"18º","MEXICANO","BRUNO/RODRIGO","PETRÓPOLIS",67,null,null,"18º","GUERREIRO","ELISEU","TRÊS RIOS",94]
["19º",null,null,null,null,null,null,"19º",null,null,null,null,null,null,"19º","BRUTO","RUAN BARRINHA","PARAÍBA DO SUL",66,null,null,"19º","MAGAYVER","JESUS DE PAULA","TRÊS RIOS",90]
["20º",null,null,null,null,null,null,"20º",null,null,null,null,null,null,"20º","FERRADURA","GUSTAVO/GILSON","TRÊS RIOS",65,null,null,"20º","MAESTRO FILHO","RAFAEL","PARAÍBA DO SUL",81]
["21º",null,null,null,null,null,null,"21º",null,null,null,null,null,null,"21º","CHICO BENTO","MÁRCIO","JUIZ DE FORA",60,null,null,"21º","SEILA","FAMÍLIA MINGAL","PARAÍBA DO SUL",81]
["22º",null,null,null,null,null,null,"22º",null,null,null,null,null,null,"22º",null,null,null,null,null,null,"22º","TALENTO","LOIRIN","PARAÍBA DO SUL",81]
["23º",null,null,null,null,null,null,"23º",null,null,null,null,null,null,"23º",null,null,null,null,null,null,"23º","BMW","SASSÁ/GABRIEL","PARAÍBA DO SUL",80]
["24º",null,null,null,null,null,null,"24º",null,null,null,null,null,null,"24º",null,null,null,null,null,null,"24º","FORÇA JOVEM","VINICIUS","TRÊS RIOS",77]
["25º",null,null,null,null,null,null,"25º",null,null,null,null,null,null,"25º",null,null,null,null,null,null,"25º","NERVOSO","GLEISON","TRÊS RIOS",77]
["26º",null,null,null,null,null,null,"26º",null,null,null,null,null,null,"26º",null,null,null,null,null,null,"26º","ABUSADO","NI SANTANA","TRÊS RIOS",76]
["27º",null,null,null,null,null,null,"27º",null,null,null,null,null,null,"27º",null,null,null,null,null,null,"27º","TARJA PRETA","HENRIQUE","ANTA",73]
["28º",null,null,null,null,null,null,"28º",null,null,null,null,null,null,"28º",null,null,null,null,null,null,"28º","BOPE","GILSON/GUSTAVO","SANTOS DUMONT",72]
["29º",null,null,null,null,null,null,"29º",null,null,null,null,null,null,"29º",null,null,null,null,null,null,"29º","FULGORE","SILAS FLÁVIO","TRÊS RIOS",69]
["30º",null,null,null,null,null,null,"30º",null,null,null,null,null,null,"30º",null,null,null,null,null,null,"30º","FERRADURA","GUSTAVO/GILSON","T. RIOS/S. DUMONT",64]
["31º",null,null,null,null,null,null,"31º",null,null,null,null,null,null,"31º",null,null,null,null,null,null,"31º","OURO BRUTO","MARQUINHO","TRÊS RIOS",63]
["32º",null,null,null,null,null,null,"32º",null,null,null,null,null,null,"32º",null,null,null,null,null,null,"32º","KRATOS","LEANDRO","TRÊS RIOS",63]
["33º",null,null,null,null,null,null,"33º",null,null,null,null,null,null,"33º",null,null,null,null,null,null,"33º","BEIRA MAR","CAROÇO","ANTA",61]
["34º",null,null,null,null,null,null,"34º",null,null,null,null,null,null,"34º",null,null,null,null,null,null,"34º"]
["35º",null,null,null,null,null,null,"35º",null,null,null,null,null,null,"35º",null,null,null,null,null,null,"35º"]
["36º",null,null,null,null,null,null,"36º",null,null,null,null,null,null,"36º",null,null,null,null,null,null,"36º"]
["37º",null,null,null,null,null,null,"37º",null,null,null,null,null,null,"37º",null,null,null,null,null,null,"37º"]
["38º",null,null,null,null,null,null,"38º",null,null,null,null,null,null,"38º",null,null,null,null,null,null,"38º"]
["39º",null,null,null,null,null,null,"39º",null,null,null,null,null,null,"39º",null,null,null,null,null,null,"39º"]
["40º",null,null,null,null,null,null,"40º",null,null,null,null,null,null,"40º",null,null,null,null,null,null,"40º"]

{"sheet":"ago2025","index":3,"n_rows":42,"n_cols":35,"rows_kept":42,"cut":false,"hidden":false,"merged":[[0,0,0,6],[0,8,0,13],[0,15,0,20],[0,22,0,27],[0,29,0,34]]}
["03/08/2025 (DOMINGO)",null,null,null,null,null,null,null,"10/08/2025 (DOMINGO)",null,null,null,null,null,null,"17/08/2025 (DOMINGO)",null,null,null,null,null,null,"24/08/2025 (DOMINGO)",null,null,null,null,null,null,"31/08/2025 (DOMINGO)"]
["POS.","PÁSSARO","PROPRIETÁRIO","ORIGEM","VASSOURADA","CANTOS","PONTOS",null,"POS.","PÁSSARO","PROPRIETÁRIO","ORIGEM","CANTOS","PONTOS",null,"POS.","PÁSSARO","PROPRIETÁRIO","ORIGEM","CANTOS","PONTOS",null,"POS.","PÁSSARO","PROPRIETÁRIO","ORIGEM","CANTOS","PONTOS",null,"POS.","PÁSSARO","PROPRIETÁRIO","ORIGEM","CANTOS","PONTOS"]
["1º","ASTRO","ALEXANDRE/ANA CARLA","SOUZA AGUIAR",83,150,30,null,"1º","AMIZADE","FLÁVIO","MIGUEL PEREIRA",179,30,null,"1º","CADILLAC","DANIEL","JUIZ DE FORA",151,30,null,"1º","MEIA NOITE","MARCÃO","JUIZ DE FORA",173,30,null,"1º","MALVADO","ADALBERTO","BEMPOSTA",162,30]
["2º","SCARFACE","QUAQUA/PETETECO","AVELAR",66,135,28,null,"2º","MOLEQUE DOIDO","JOSÉ AMERICO","DORES DE CAMPOS",177,28,null,"2º","NEGO VEIO","LUIZINHO","PETRÓPOLIS",128,28,null,"2º","SUPREME","ANDRÉ LUIS","PARAÍBA DO SUL",153,28,null,"2º","NOVATO","LUCIMAR/LUIZ HENRIQUE","TRÊS RIOS",157,28]
["3º","DEMOLIDOR","MICHEL","TRÊS RIOS",68,117,26,null,"3º","SUPREME","ANDRÉ","PARAÍBA DO SUL",153,26,null,"3º","CHARADA","GABRIEL","PETRÓPOLIS",127,26,null,"3º","MOLEQUE DOIDO","MARINHO","SANTOS DUMONT",139,26,null,"3º","ULTRAGAS","GABRIEL","MAR DE ESPANHA",145,26]
["4º","CHARADA","GABRIEL","PETRÓPOLIS",74,108,24,null,"4º","XERIFE","LI","BARBACENA",150,24,null,"4º","XERIFE","LI","BARBACENA",126,24,null,"4º","CADILLAC","DANIEL","JUIZ DE FORA",137,24,null,"4º","POPAYE","GILSON/GUSTAVO","SANTOS DUMONT",141,24]
["5º","NEGO VEIO","LUIZINHO","PETRÓPOLIS",78,105,23,null,"5º","SUZUKI","JOÃO PEDRO","PARAÍBA DO SUL",144,23,null,"5º","CABULOSO","BORRACHA","JUIZ DE FORA",123,23,null,"5º","NEGO VEIO","LUIZINHO","PETRÓPOLIS",136,23,null,"5º","ASTRO","ALEXANDRE/ANA CARLA","SOUZA AGUIAR",141,23]
["6º","ATREVIDO","JOSENILTON","PARAÍBA DO SUL",90,103,22,null,"6º","MAKARIOS","RAFAEL DIAS","PARAÍBA DO SUL",131,22,null,"6º","ABENÇOADO","JUNIN","JUIZ DE FORA",120,22,null,"6º","NOVATO","LUCIMAR/LUIZ HENRIQUE","TRÊS RIOS",132,22,null,"6º","NEGO VEIO","LUIZINHO","PETRÓPOLIS",138,22]
["7º","FANTÁSTICO","TIAGUINHO","JUIZ DE FORA",90,103,21,null,"7º","MOLEQUE DOIDO","MARINHO","SANTOS DUMONT",128,21,null,"7º","PROBLEMA","EMERSON","ANTA",120,21,null,"7º","MAGAYVER","JESUS DE PAULA","TRÊS RIOS",128,21,null,"7º","CABULOSO","BORRACHA","JUIZ DE FORA",136,21]
["8º","TURBO","ADRIANO","PETRÓPOLIS",63,103,20,null,"8º","CHARADA","GABRIEL","PETRÓPOLIS",128,20,null,"8º","ATREVIDO","JOSENILTON","PARAÍBA DO SUL",118,20,null,"8º","CALIBRE","FAMÍLIA MINGAL","PARAÍBA DO SUL",125,20,null,"8º","ZICO","BRUNO/MARCINHO","JUIZ DE FORA",120,20]
["9º","PESADELO","THIAGO","JUIZ DE FORA",65,102,19,null,"9º","MAGAYVER","JESUS DE PAULA","TRÊS RIOS",113,19,null,"9º","REI","GUSTAVO/GILSON","TRÊS RIOS/S. DUMONT",117,19,null,"9º","FARISEU","FAMÍLIA MINGAL","PARAÍBA DO SUL",118,19,null,"9º","DEMOLIDOR","MICHEL","TRÊS RIOS",120,19]
["10º","SUSSURRO","CH/DOMINGOS","PARAÍBA DO SUL",91,100,18,null,"10º","IGNORANTE","JUNINHO","TRÊS RIOS",110,18,null,"10º","CRAQUE","ALCINEI","JUIZ DE FORA",116,18,null,"10º","BICO BOM","PERROTA","PARAÍBA DO SUL",117,18,null,"10º","VELOSTER","HENRIQUE","ANTA",112,18]
["11º","GUERREIRO","ELISEU ARCANJO","TRÊS RIOS",69,100,17,null,"11º","CRUEL","RODRIGO/FELIPE","ROCHEDO DE MINAS",109,17,null,"11º","PIVETE","HENRIQUE","ANTA",113,17,null,"11º","ATREVIDO","JOSENILTON","PARAÍBA DO SUL",114,17,null,"11º","RAMBO","LUIZINHO","PETRÓPOLIS",110,17]
["12º","VELOSTER","HENRIQUE","ANTA",63,99,16,null,"12º","RAMBO","LUIZINHO","PETRÓPOLIS",109,16,null,"12º","LOKI","DALIO LEAL","TRÊS RIOS",112,16,null,"12º","CAPOEIRA","WANDER/NICIA","BICAS",110,16,null,"12º","ATREVIDO","JOSENILTON","PARAÍBA DO SUL",106,16]
["13º","TARRAFA","EDIMAR LEITEIRO","PETRÓPOLIS",70,96,15,null,"13º","NEGO VEIO","LUIZINHO","PETRÓPOLIS",108,15,null,"13º","RAMBO","LUIZINHO","PETRÓPOLIS",111,15,null,"13º","TALARICO","ALFREDO","MATIAS BARBOSA",109,15,null,"13º","ABSOLUTO","XANDINHO","SANTOS DUMONT",104,15]
["14º","PROBLEMA","EMERSON","ANTA",57,93,14,null,"14º","VELOSTER","HENRIQUE","ANTA",105,14,null,"14º","MATA RINDO","JUNINHO","JUIZ DE FORA",109,14,null,"14º","GUERREIRO","ELIZEU ARCANJO","TRÊS RIOS",108,14,null,"14º","DIEGO","EULER","TRÊS RIOS",101,14]
["15º","SEILA","FAMÍLIA MINGAL","PARAÍBA DO SUL",67,92,13,null,"15º","FRAJOLA","LUCAS","PETRÓPOLIS",101,13,null,"15º","FRAJOLA","LUCAS","PETRÓPOLIS",109,13,null,"15º","RAMBO","LUIZINHO","PETRÓPOLIS",107,13,null,"15º","BOPE","GILSON/GUSTAVO","SANTOS DUMONT",100,13]
["16º","MAESTRO FILHO","RAFAEL","PARAÍBA DO SUL",93,89,null,null,"16º","BOLA DE FOGO","JORGE MUNIZ","SAPUCAIA",97,null,null,"16º","DOPAMINA","RAPHAEL","MATIAS BARBOSA",100,null,null,"16º","BUCANHA","CYR","JUIZ DE FORA",104,null,null,"16º","LOKI","FÁBIO LEAL","TRÊS RIOS",99]
["17º","MARRETA","MARCELO","SEBOLAS",62,88,null,null,"17º","ATREVIDO","JOSENILTON","PARAÍBA DO SUL",97,null,null,"17º","FARISEU","FAMÍLIA MINGAL","PARAÍBA DO SUL",96,null,null,"17º","PIVETE","HENRIQUE","ANTA",102,null,null,"17º","IGNORANTE","JUNINHO","TRÊS RIOS",97]
["18º","TALENTO","LOIRIN","PARAÍBA DO SUL",61,83,null,null,"18º","ITACHI","IVERSON","TRÊS RIOS",97,null,null,"18º","CRUEL","RODRIGO/FELIPE","ROCHEDO DE MINAS",92,null,null,"18º","OUSADIA E ALEGRIA","CARLOS BRAND","PETRÓPOLIS",97,null,null,"18º","PROBLEMA","EMERSON","ANTA",95]
["19º","LULA","GLEISON","TRÊS RIOS",71,79,null,null,"19º","TURBO","ADRIANO","PETRÓPOLIS",95,null,null,"19º","TOP","FAMÍLIA MINGAL","PARAÍBA DO SUL",92,null,null,"19º","SUPER","RODRIGO","PETRÓPOLIS",91,null,null,"19º","MALVADO","MARCELO","SEBOLAS",92]
["20º","ABUSADO","NI SANTANA","TRÊS RIOS",58,76,null,null,"20º","SUPER","RODRIGO","PETRÓPOLIS",94,null,null,"20º","DEMOLIDOR","MICHEL","TRÊS RIOS",83,null,null,"20º","INTERESSEIRO","FELIPE MACEDO","GUARARÁ",90,null,null,"20º","MANDELA","MÁRCIO","TRÊS RIOS",87]
["21º","JOHN WICK","IVERSON","TRÊS RIOS",56,76,null,null,"21º","BOI BANDIDO","VINICIOS","ANTA",91,null,null,"21º","NEGUINHO","JESUS DE PAULA","TRÊS RIOS",82,null,null,"21º","TURBO","ADRIANO","PETRÓPOLIS",90,null,null,"21º","PAIZÃO","FERNANDO SIMÃO","PETRÓPOLIS",85]
["22º","MÁXIMO","MATHEUS","PARAÍBA DO SUL",64,75,null,null,"22º","PROBLEMA","EMERSON","ANTA",90,null,null,"22º","PIRRALHO","IGOR","PARAÍBA DO SUL",81,null,null,"22º","BOPE","GILSON/GUSTAVO","S. DUMONT/TRÊS RIOS",88,null,null,"22º","GABIGOL","ADELMO","PARAÍBA DO SUL",85]
["23º","FULGORE","SILAS FLÁVIO","TRÊS RIOS",57,73,null,null,"23º","MAESTRO FILHO","RAFAEL","PARAÍBA DO SUL",84,null,null,"23º","RD","ROBSON CAMPOS","PETRÓPOLIS",75,null,null,"23º","PROBLEMA","EMERSON","ANTA",86,null,null,"23º","SUSSURRO","DOMINGOS","PARAÍBA DO SUL",80]
["24º","MAGAYVER","JESUS","TRÊS RIOS",94,70,null,null,"24º","PAVAROTI JR.","ELIOMAR","TRÊS RIOS",80,null,null,"24º","GUERREIRO","ELISEU ARCANJO","TRÊS RIOS",74,null,null,"24º","CYCLOPE","RENATO","JUIZ DE FORA",70,null,null,"24º","APTO","JANDERSON","TRÊS RIOS",78]
["25º","JUSTICEIRO","WELITON","SEBOLAS",67,67,null,null,"25º","SUSSURRO","CH/DOMINGOS","PARAÍBA DO SUL",75,null,null,"25º","SEM EDUCAÇÃO","MAGNO","RIO DAS FLORES",70,null,null,"25º","MANDELA","MÁRCIO","TRÊS RIOS",70,null,null,"25º","WOLVERINE","MURILO","TRÊS RIOS",73]
["26º","KRATOS","LEANDRO","TRÊS RIOS",50,65,null,null,"26º","TALENTO","LOIRIN","PARAÍBA DO SUL",68,null,null,"26º","QUEBRA OSSO","GABRIEL/DJ RODRIGO","PARAÍBA DO SUL",66,null,null,"26º","ESTRELA","JOSÉ PEREIRA","TRÊS RIOS",68,null,null,"26º","TOP","FAMÍLIA MINGAL","PARAÍBA DO SUL",70]
["27º","FORÇA JOVEM","CARLOS VINICIOS","TRÊS RIOS",57,58,null,null,"27º","FORÇA JOVEM","CARLOS VINICIOS","PETRÓPOLIS",68,null,null,"27º","DIEGO","EULER","TRÊS RIOS",64,null,null,"27º","CEIFADOR","MARCOS EVARISTO","JUIZ DE FORA",64,null,null,"27º","COBALTO","FÁBIO","TRÊS RIOS",66]
["28º","MAROLA","LEANDRO","TRÊS RIOS",50,52,null,null,"28º","DUBLÊ","GILSON/GUSTAVO","SANTOS DUMONT",67,null,null,"28º","OURO BRUTO","MARQUINHO","TRÊS RIOS",57,null,null,"28º","CARIBE","MARCIO","PARAÍBA DO SUL",54,null,null,"28º"]
["29º","BEIRA MAR","CAROÇO","ANTA",45,36,null,null,"29º","DIEGO","EULER","TRÊS RIOS",67,null,null,"29º","ABUSADO","NI SANTANA","TRÊS RIOS",54,null,null,"29º","NARUTO","RODOLFO","TRÊS RIOS",50,null,null,"29º"]
["30º",null,null,null,null,null,null,null,"30º","RD","ROBSON CAMPOS","PETRÓPOLIS",63,null,null,"30º","KRATOS","LEANDRO","TRÊS RIOS",53,null,null,"30º","KRATOS","LEANDRO","TRÊS RIOS",45,null,null,"30º"]
["31º",null,null,null,null,null,null,null,"31º","FARÃO","RAFAEL SATYRO","PETRÓPOLIS",62,null,null,"31º",null,null,null,null,null,null,"31º",null,null,null,null,null,null,"31º"]
["32º",null,null,null,null,null,null,null,"32º",null,null,null,null,null,null,"32º",null,null,null,null,null,null,"32º",null,null,null,null,null,null,"32º"]
["33º",null,null,null,null,null,null,null,"33º",null,null,null,null,null,null,"33º",null,null,null,null,null,null,"33º",null,null,null,null,null,null,"33º"]
["34º",null,null,null,null,null,null,null,"34º",null,null,null,null,null,null,"34º",null,null,null,null,null,null,"34º",null,null,null,null,null,null,"34º"]
["35º",null,null,null,null,null,null,null,"35º",null,null,null,null,null,null,"35º",null,null,null,null,null,null,"35º",null,null,null,null,null,null,"35º"]
["36º",null,null,null,null,null,null,null,"36º",null,null,null,null,null,null,"36º",null,null,null,null,null,null,"36º",null,null,null,null,null,null,"36º"]
["37º",null,null,null,null,null,null,null,"37º",null,null,null,null,null,null,"37º",null,null,null,null,null,null,"37º",null,null,null,null,null,null,"37º"]
["38º",null,null,null,null,null,null,null,"38º",null,null,null,null,null,null,"38º",null,null,null,null,null,null,"38º",null,null,null,null,null,null,"38º"]
["39º",null,null,null,null,null,null,null,"39º",null,null,null,null,null,null,"39º",null,null,null,null,null,null,"39º",null,null,null,null,null,null,"39º"]
["40º",null,null,null,null,null,null,null,"40º",null,null,null,null,null,null,"40º",null,null,null,null,null,null,"40º",null,null,null,null,null,null,"40º"]